lending/lending_fUSD_20250719
["ID","MTS","AMOUNT","RATE_DAILY","PERIOD"]
[373217715,1752909055047,-937.01,0.00020273,2]
[373217716,1752909055058,-159.70172742,0.00020273,2]
[373217718,1752909055069,-480.0,0.00020273,2]
[373217720,1752909055080,-568.26,0.00020273,2]
[373217723,1752909055092,-2076.63,0.00020273,2]
[373217725,1752909055103,-835.27,0.00020273,2]
[373217727,1752909055115,-480.0,0.00020273,2]
[373217729,1752909055125,-571.22,0.00020273,2]
[373217731,1752909055137,-480.0,0.00020273,2]
[373217733,1752909055148,-480.0,0.00020273,2]
[373217735,1752909055160,-480.0,0.00020273,2]
[373217737,1752909055172,-480.0,0.00020273,2]
[373217740,1752909055183,-11516.19,0.00020274,2]
[373217742,1752909055195,-669.173358,0.00020297,8]
[373217744,1752909055206,-330.38337552,0.00020319,2]
[373217746,1752909055216,-5281.48019521,0.0002032,2]
[373217748,1752909055228,-1000.0,0.00020348,2]
[373217750,1752909055239,-232.0,0.0002035,2]
[373217752,1752909055249,-150.0,0.00020363,2]
[373217755,1752909055260,-726.16,0.00020381,2]
[373217757,1752909055271,-480.0,0.00020382,2]
[373217759,1752909055283,-151.0,0.00020382,2]
[373217761,1752909055295,-194.996579,0.00020382,2]
[373217763,1752909055308,-563.18,0.00020382,2]
[373217765,1752909055319,-518.14,0.00020382,2]
[373217768,1752909055330,-480.0,0.00020382,2]
[373217775,1752909055548,-480.0,0.00020382,2]
[373217776,1752909055559,-480.0,0.00020382,2]
[373217777,1752909055571,-480.0,0.00020382,2]
[373217778,1752909055583,-480.0,0.00020382,2]
[373217779,1752909055600,-792.72,0.00020382,2]
[373217780,1752909055610,-480.0,0.00020382,2]
[373217781,1752909055621,-600.12,0.00020382,2]
[373217782,1752909055632,-480.0,0.00020382,2]
[373217783,1752909055643,-1354.91,0.00020382,2]
[373217784,1752909055653,-480.0,0.00020382,2]
[373217785,1752909055665,-480.0,0.00020382,2]
[373217786,1752909055677,-764.91,0.00020382,2]
[373217787,1752909055689,-801.31,0.00020382,2]
[373217788,1752909055699,-1230.98,0.00020382,2]
[373217789,1752909055710,-480.0,0.00020382,2]
[373217790,1752909055720,-897.36,0.00020382,2]
[373217791,1752909055730,-480.0,0.00020382,2]
[373217792,1752909055740,-718.18,0.00020382,2]
[373217793,1752909055751,-606.55,0.00020382,2]
[373217794,1752909055762,-480.0,0.00020382,2]
[373217795,1752909055773,-539.16,0.00020382,2]
[373217796,1752909055785,-480.0,0.00020382,2]
[373217797,1752909055799,-480.0,0.00020382,2]
[373217798,1752909055813,-921.82,0.00020382,2]
[373217799,1752909055824,-480.0,0.00020382,2]
[373217800,1752909055835,-480.0,0.00020382,2]
[373217801,1752909055847,-480.0,0.00020382,2]
[373217802,1752909055857,-573.09,0.00020382,2]
[373217803,1752909055867,-843.96,0.00020382,2]
[373217804,1752909055880,-480.0,0.00020382,2]
[373217805,1752909055891,-480.0,0.00020382,2]
[373217806,1752909055901,-534.74,0.00020382,2]
[373217807,1752909055912,-480.0,0.00020382,2]
[373217808,1752909055923,-480.0,0.00020382,2]
[373217809,1752909055934,-7391.1,0.00020382,2]
[373217810,1752909055944,-637.96,0.00020382,2]
[373217811,1752909055955,-480.0,0.00020382,2]
[373217812,1752909055966,-875.35,0.00020382,2]
[373217813,1752909055978,-1009.52,0.00020382,2]
[373217814,1752909055988,-480.0,0.00020382,2]
[373217815,1752909055999,-1341.18,0.00020382,2]
[373217816,1752909056010,-937.01,0.00020382,2]
[373217817,1752909056021,-480.0,0.00020382,2]
[373217818,1752909056031,-681.25,0.00020382,2]
[373217819,1752909056042,-480.0,0.00020382,2]
[373217820,1752909056052,-310.93447197,0.00020382,2]
[373217821,1752909056063,-480.0,0.00020382,2]
[373217822,1752909056073,-480.0,0.00020382,2]
[373217823,1752909056084,-310.8777434,0.00020382,2]
[373217824,1752909056095,-540.38,0.00020382,2]
[373217825,1752909056107,-480.0,0.00020382,2]
[373217826,1752909056118,-480.0,0.00020382,2]
[373217827,1752909056129,-480.0,0.00020382,2]
[373217828,1752909056139,-835.27,0.00020382,2]
[373217829,1752909056150,-1223.95,0.00020382,2]
[373217830,1752909056161,-480.0,0.00020382,2]
[373217831,1752909056172,-536.6,0.00020382,2]
[373217832,1752909056182,-480.0,0.00020382,2]
[373217833,1752909056192,-480.0,0.00020382,2]
[373217834,1752909056203,-499.34,0.00020382,2]
[373217835,1752909056214,-571.22,0.00020382,2]
[373217836,1752909056226,-566.64,0.00020382,2]
[373217837,1752909056237,-480.0,0.00020382,2]
[373217838,1752909056248,-615.64,0.00020382,2]
[373217839,1752909056258,-480.0,0.00020382,2]
[373217840,1752909056268,-480.0,0.00020382,2]
[373217841,1752909056281,-1220.62,0.00020382,2]
[373217842,1752909056292,-480.0,0.00020382,2]
[373217843,1752909056302,-480.0,0.00020382,2]
[373217844,1752909056313,-480.0,0.00020382,2]
[373217845,1752909056323,-480.0,0.00020382,2]
[373217846,1752909056334,-538.50177861,0.00020383,2]
[373217847,1752909056350,-581.07,0.00020383,2]
[373217848,1752909056371,-628.11,0.00020383,2]
[373217849,1752909056381,-480.0,0.00020383,2]
[373217850,1752909056392,-4441.88,0.00020383,2]
[373217851,1752909056403,-233.82546416,0.00020383,2]
[373217852,1752909056413,-1011.37,0.00020383,2]
[373217853,1752909056424,-1953.2,0.00020383,2]
[373217854,1752909056434,-480.0,0.00020383,2]
[373217855,1752909056445,-631.07,0.00020383,2]
[373217856,1752909056455,-480.0,0.00020383,2]
[373217857,1752909056466,-173.48643236,0.00020383,2]
[373217858,1752909056477,-725.13,0.00020383,2]
[373217859,1752909056487,-568.26,0.00020383,2]
[373217860,1752909056498,-2076.63,0.00020383,2]
[373217861,1752909056508,-480.0,0.00020383,2]
[373217862,1752909056519,-480.0,0.00020383,2]
[373217863,1752909056529,-480.0,0.00020383,2]
[373217864,1752909056540,-480.0,0.00020383,2]
[373217865,1752909056550,-480.0,0.00020383,2]
[373217866,1752909056560,-192.99,0.00020391,2]
[373217867,1752909056570,-150.0,0.0002042,2]
[373217868,1752909056581,-1001.46759398,0.00020421,2]
[373217869,1752909056591,-500.0,0.00020421,2]
[373217870,1752909056602,-1000.0,0.00020421,2]
[373217871,1752909056612,-509.02389227,0.00020421,2]
[373217872,1752909056622,-1000.0,0.00020421,2]
[373217873,1752909056632,-150.0,0.00020423,2]
[373217874,1752909056643,-150.0,0.00020432,2]
[373217875,1752909056653,-2508.37,0.00020434,2]
[373217876,1752909056663,-330.38337552,0.0002045,2]
[373217877,1752909056674,-5000.0,0.00020478,2]
[373217878,1752909056684,-391.74426504,0.00020478,2]
[373217879,1752909056694,-190.0,0.00020485,2]
[373217880,1752909056704,-726.16,0.00020491,2]
[373217881,1752909056714,-480.0,0.00020492,2]
[373217882,1752909056724,-151.0,0.00020492,2]
[373217883,1752909056735,-563.18,0.00020492,2]
[373217884,1752909056745,-518.14,0.00020492,2]
[373217885,1752909056755,-489.8978545,0.00020492,2]
[373217886,1752909056765,-480.0,0.00020492,2]
[373217887,1752909056775,-244.19577048,0.00020492,2]
[373217888,1752909056785,-480.0,0.00020492,2]
[373217889,1752909056797,-480.0,0.00020492,2]
[373217890,1752909056812,-792.72,0.00020492,2]
[373217891,1752909056822,-480.0,0.00020492,2]
[373217892,1752909056834,-600.12,0.00020492,2]
[373217893,1752909056844,-480.0,0.00020492,2]
[373217894,1752909056854,-1354.91,0.00020492,2]
[373217895,1752909056865,-488.27584309,0.00020492,2]
[373217896,1752909056875,-480.0,0.00020492,2]
[373217897,1752909056885,-764.91,0.00020492,2]
[373217898,1752909056895,-801.31,0.00020492,2]
[373217899,1752909056906,-1230.98,0.00020492,2]
[373217900,1752909056916,-480.0,0.00020492,2]
[373217901,1752909056927,-897.36,0.00020492,2]
[373217902,1752909056937,-480.0,0.00020492,2]
[373217903,1752909056947,-718.18,0.00020492,2]
[373217904,1752909056957,-606.55,0.00020492,2]
[373217905,1752909056968,-480.0,0.00020492,2]
[373217906,1752909056977,-539.16,0.00020492,2]
[373217907,1752909056988,-480.0,0.00020492,2]
[373217908,1752909056998,-364.79309113,0.00020492,2]
[373217909,1752909057009,-921.82,0.00020492,2]
[373217910,1752909057019,-480.0,0.00020492,2]
[373217911,1752909057030,-480.0,0.00020492,2]
[373217912,1752909057040,-480.0,0.00020492,2]
[373217913,1752909057051,-573.09,0.00020492,2]
[373217914,1752909057061,-843.96,0.00020492,2]
[373217915,1752909057071,-480.0,0.00020492,2]
[373217916,1752909057082,-480.0,0.00020492,2]
[373217917,1752909057094,-534.74,0.00020492,2]
[373217918,1752909057104,-480.0,0.00020492,2]
[373217919,1752909057115,-480.0,0.00020492,2]
[373217920,1752909057126,-7391.1,0.00020492,2]
[373217921,1752909057136,-637.96,0.00020492,2]
[373217922,1752909057146,-480.0,0.00020492,2]
[373217923,1752909057156,-875.35,0.00020492,2]
[373217924,1752909057167,-1009.52,0.00020492,2]
[373217925,1752909057177,-480.0,0.00020492,2]
[373217926,1752909057188,-1341.18,0.00020492,2]
[373217927,1752909057198,-937.01,0.00020492,2]
[373217928,1752909057208,-480.0,0.00020492,2]
[373217929,1752909057219,-681.25,0.00020492,2]
[373217930,1752909057230,-480.0,0.00020492,2]
[373217931,1752909057240,-480.0,0.00020492,2]
[373217932,1752909057250,-480.0,0.00020492,2]
[373217933,1752909057260,-540.38,0.00020492,2]
[373217934,1752909057271,-480.0,0.00020492,2]
[373217935,1752909057281,-480.0,0.00020492,2]
[373217936,1752909057291,-480.0,0.00020492,2]
[373217937,1752909057302,-835.27,0.00020492,2]
[373217938,1752909057312,-1223.95,0.00020492,2]
[373217939,1752909057322,-613.54737062,0.00020492,2]
[373217940,1752909057332,-536.6,0.00020492,2]
[373217941,1752909057343,-480.0,0.00020492,2]
[373217942,1752909057353,-480.0,0.00020492,2]
[373217943,1752909057364,-499.34,0.00020492,2]
[373217944,1752909057375,-571.22,0.00020492,2]
[373217945,1752909057386,-566.64,0.00020492,2]
[373217946,1752909057396,-435.81718459,0.00020492,2]
[373217947,1752909057406,-615.64,0.00020492,2]
[373217948,1752909057416,-480.0,0.00020492,2]
[373217949,1752909057426,-480.0,0.00020492,2]
[373217950,1752909057437,-1220.62,0.00020492,2]
[373217951,1752909057447,-480.0,0.00020492,2]
[373217952,1752909057458,-480.0,0.00020492,2]
[373217953,1752909057468,-480.0,0.00020492,2]
[373217954,1752909057479,-480.0,0.00020492,2]
[373217955,1752909057491,-581.07,0.00020493,2]
[373217956,1752909057502,-628.11,0.00020493,2]
[373217957,1752909057512,-480.0,0.00020493,2]
[373217958,1752909057523,-4441.88,0.00020493,2]
[373217959,1752909057534,-1011.37,0.00020493,2]
[373217960,1752909057545,-1953.2,0.00020493,2]
[373217961,1752909057555,-480.0,0.00020493,2]
[373217962,1752909057565,-631.07,0.00020493,2]
[373217963,1752909057576,-480.0,0.00020493,2]
[373217964,1752909057586,-725.13,0.00020493,2]
[373217965,1752909057597,-568.26,0.00020493,2]
[373217966,1752909057607,-2076.63,0.00020493,2]
[373217967,1752909057618,-480.0,0.00020493,2]
[373217968,1752909057629,-480.0,0.00020493,2]
[373217969,1752909057640,-480.0,0.00020493,2]
[373217970,1752909057650,-480.0,0.00020493,2]
[373217971,1752909057660,-328.78200189,0.00020493,2]
[373217972,1752909057671,-507.0,0.00020507,2]
[373217973,1752909057681,-150.0,0.00020517,2]
[373217974,1752909057691,-2501.21,0.00020526,2]
[373217975,1752909057702,-150.0,0.00020543,2]
[373217976,1752909057712,-190.0,0.00020556,2]
[373217977,1752909057722,-256.55,0.00020565,2]
[373217978,1752909057733,-25000.0,0.00020567,2]
[373217979,1752909057744,-330.38337552,0.00020582,2]
[373217980,1752909057754,-232.0,0.0002059,2]
[373217981,1752909057765,-480.0,0.00020601,2]
[373217982,1752909057775,-563.18,0.00020601,2]
[373217983,1752909057785,-518.14,0.00020601,2]
[373217984,1752909057796,-480.0,0.00020601,2]
[373217985,1752909057811,-480.0,0.00020601,2]
[373217986,1752909057822,-480.0,0.00020601,2]
[373217987,1752909057832,-792.72,0.00020601,2]
[373217988,1752909057843,-480.0,0.00020601,2]
[373217989,1752909057854,-600.12,0.00020601,2]
[373217990,1752909057865,-208.24419002,0.00020601,2]
[373217991,1752909057875,-1354.91,0.00020601,2]
[373217992,1752909057886,-480.0,0.00020601,2]
[373217993,1752909057897,-801.31,0.00020601,2]
[373217994,1752909057907,-764.91,0.00020601,2]
[373217995,1752909057918,-1230.98,0.00020601,2]
[373217996,1752909057929,-480.0,0.00020601,2]
[373217997,1752909057939,-897.36,0.00020601,2]
[373217998,1752909057949,-480.0,0.00020601,2]
[373217999,1752909057959,-718.18,0.00020601,2]
[373218000,1752909057970,-606.55,0.00020601,2]
[373218001,1752909057980,-480.0,0.00020601,2]
[373218002,1752909057990,-539.16,0.00020601,2]
[373218003,1752909058001,-480.0,0.00020601,2]
[373218004,1752909058012,-921.82,0.00020601,2]
[373218005,1752909058022,-480.0,0.00020601,2]
[373218006,1752909058032,-480.0,0.00020601,2]
[373218007,1752909058043,-480.0,0.00020601,2]
[373218008,1752909058053,-573.09,0.00020601,2]
[373218009,1752909058064,-843.96,0.00020601,2]
[373218010,1752909058075,-480.0,0.00020601,2]
[373218011,1752909058085,-480.0,0.00020601,2]
[373218012,1752909058095,-534.74,0.00020601,2]
[373218013,1752909058106,-480.0,0.00020601,2]
[373218014,1752909058115,-480.0,0.00020601,2]
[373218015,1752909058126,-7391.1,0.00020601,2]
[373218016,1752909058136,-637.96,0.00020601,2]
[373218017,1752909058146,-480.0,0.00020601,2]
[373218018,1752909058157,-875.35,0.00020601,2]
[373218019,1752909058167,-1009.52,0.00020601,2]
[373218020,1752909058178,-480.0,0.00020601,2]
[373218021,1752909058188,-1341.18,0.00020601,2]
[373218022,1752909058199,-937.01,0.00020601,2]
[373218023,1752909058210,-480.0,0.00020601,2]
[373218024,1752909058220,-681.25,0.00020601,2]
[373218025,1752909058231,-419.40596642,0.00020601,2]
[373218026,1752909058241,-480.0,0.00020601,2]
[373218027,1752909058252,-480.0,0.00020601,2]
[373218028,1752909058263,-540.38,0.00020601,2]
[373218029,1752909058273,-480.0,0.00020601,2]
[373218030,1752909058284,-480.0,0.00020601,2]
[373218031,1752909058294,-480.0,0.00020601,2]
[373218032,1752909058304,-835.27,0.00020601,2]
[373218033,1752909058315,-1223.95,0.00020601,2]
[373218034,1752909058325,-536.6,0.00020601,2]
[373218035,1752909058335,-480.0,0.00020601,2]
[373218036,1752909058346,-480.0,0.00020601,2]
[373218037,1752909058357,-499.34,0.00020601,2]
[373218038,1752909058367,-571.22,0.00020601,2]
[373218039,1752909058843,-566.64,0.00020601,2]
[373218040,1752909058869,-615.64,0.00020601,2]
[373218041,1752909058886,-480.0,0.00020601,2]
[373218042,1752909058896,-480.0,0.00020601,2]
[373218043,1752909058906,-1220.62,0.00020601,2]
[373218044,1752909058916,-480.0,0.00020601,2]
[373218045,1752909058926,-480.0,0.00020601,2]
[373218046,1752909058935,-480.0,0.00020601,2]
[373218047,1752909058945,-726.16,0.00020601,2]
[373218048,1752909058955,-480.0,0.00020601,2]
[373218049,1752909058964,-581.07,0.00020602,2]
[373218050,1752909058974,-628.11,0.00020602,2]
[373218051,1752909058983,-480.0,0.00020602,2]
[373218052,1752909058993,-4441.88,0.00020602,2]
[373218053,1752909059003,-1011.37,0.00020602,2]
[373218054,1752909059012,-1953.2,0.00020602,2]
[373218055,1752909059022,-480.0,0.00020602,2]
[373218056,1752909059032,-631.07,0.00020602,2]
[373218057,1752909059042,-480.0,0.00020602,2]
[373218058,1752909059052,-725.13,0.00020602,2]
[373218059,1752909059062,-568.26,0.00020602,2]
[373218060,1752909059072,-2076.63,0.00020602,2]
[373218061,1752909059081,-182.66112497,0.00020602,2]
[373218062,1752909059091,-480.0,0.00020602,2]
[373218063,1752909059101,-480.0,0.00020602,2]
[373218064,1752909059111,-480.0,0.00020602,2]
[373218065,1752909059119,-256.54713356,0.00020603,2]
[373218066,1752909059129,-150.0,0.00020608,2]
[373218067,1752909059139,-1500.0,0.00020612,2]
[373218068,1752909059148,-5000.0,0.00020635,2]
[373218069,1752909059159,-150.0,0.00020657,2]
[373218070,1752909059168,-600.0,0.00020658,2]
[373218071,1752909059178,-25000.0,0.00020665,2]
[373218072,1752909059187,-150.0,0.00020708,2]
[373218073,1752909059197,-726.16,0.0002071,2]
[373218074,1752909059206,-480.0,0.00020711,2]
[373218075,1752909059216,-563.18,0.00020711,2]
[373218076,1752909059225,-518.14,0.00020711,2]
[373218077,1752909059235,-480.0,0.00020711,2]
[373218078,1752909059245,-480.0,0.00020711,2]
[373218079,1752909059257,-792.72,0.00020711,2]
[373218080,1752909059269,-480.0,0.00020711,2]
[373218081,1752909059278,-480.0,0.00020711,2]
[373218082,1752909059288,-600.12,0.00020711,2]
[373218083,1752909059298,-1354.91,0.00020711,2]
[373218084,1752909059308,-223.61759364,0.00020711,2]
[373218085,1752909059317,-801.31,0.00020711,2]
[373218086,1752909059327,-764.91,0.00020711,2]
[373218087,1752909059336,-1230.98,0.00020711,2]
[373218088,1752909059346,-480.0,0.00020711,2]
[373218089,1752909059355,-897.36,0.00020711,2]
[373218090,1752909059366,-480.0,0.00020711,2]
[373218091,1752909059375,-718.18,0.00020711,2]
[373218092,1752909059385,-606.55,0.00020711,2]
[373218093,1752909059395,-480.0,0.00020711,2]
[373218094,1752909059405,-539.16,0.00020711,2]
[373218095,1752909059415,-480.0,0.00020711,2]
[373218096,1752909059425,-921.82,0.00020711,2]
[373218097,1752909059434,-480.0,0.00020711,2]
[373218098,1752909059444,-480.0,0.00020711,2]
[373218099,1752909059454,-480.0,0.00020711,2]
[373218100,1752909059463,-573.09,0.00020711,2]
[373218101,1752909059473,-843.96,0.00020711,2]
[373218102,1752909059483,-480.0,0.00020711,2]
[373218103,1752909059493,-480.0,0.00020711,2]
[373218104,1752909059502,-534.74,0.00020711,2]
[373218105,1752909059511,-480.0,0.00020711,2]
[373218106,1752909059521,-480.0,0.00020711,2]
[373218107,1752909059531,-7391.1,0.00020711,2]
[373218108,1752909059540,-637.96,0.00020711,2]
[373218109,1752909059550,-480.0,0.00020711,2]
[373218110,1752909059560,-875.35,0.00020711,2]
[373218111,1752909059569,-1009.52,0.00020711,2]
[373218112,1752909059579,-480.0,0.00020711,2]
[373218113,1752909059589,-1341.18,0.00020711,2]
[373218114,1752909059599,-937.01,0.00020711,2]
[373218115,1752909059608,-480.0,0.00020711,2]
[373218116,1752909059618,-681.25,0.00020711,2]
[373218117,1752909059627,-480.0,0.00020711,2]
[373218118,1752909059637,-480.0,0.00020711,2]
[373218119,1752909059647,-540.38,0.00020711,2]
[373218120,1752909059656,-480.0,0.00020711,2]
[373218121,1752909059666,-480.0,0.00020711,2]
[373218122,1752909059675,-480.0,0.00020711,2]
[373218123,1752909059685,-835.27,0.00020711,2]
[373218124,1752909059695,-536.6,0.00020711,2]
[373218125,1752909059706,-1223.95,0.00020711,2]
[373218126,1752909059715,-480.0,0.00020711,2]
[373218127,1752909059725,-480.0,0.00020711,2]
[373218128,1752909059735,-499.34,0.00020711,2]
[373218129,1752909059744,-571.22,0.00020711,2]
[373218130,1752909059754,-566.64,0.00020711,2]
[373218131,1752909059764,-615.64,0.00020711,2]
[373218132,1752909059774,-480.0,0.00020711,2]
[373218133,1752909059784,-480.0,0.00020711,2]
[373218134,1752909059794,-1220.62,0.00020711,2]
[373218135,1752909059807,-480.0,0.00020711,2]
[373218136,1752909059817,-480.0,0.00020711,2]
[373218137,1752909059827,-480.0,0.00020711,2]
[373218138,1752909059838,-480.0,0.00020711,2]
[373218139,1752909059849,-581.07,0.00020712,2]
[373218140,1752909059859,-628.11,0.00020712,2]
[373218141,1752909059871,-480.0,0.00020712,2]
[373218142,1752909059881,-4441.88,0.00020712,2]
[373218143,1752909059891,-1011.37,0.00020712,2]
[373218144,1752909059901,-1953.2,0.00020712,2]
[373218145,1752909059911,-480.0,0.00020712,2]
[373218146,1752909059922,-631.07,0.00020712,2]
[373218147,1752909059932,-480.0,0.00020712,2]
[373218148,1752909059942,-725.13,0.00020712,2]
[373218149,1752909059952,-568.26,0.00020712,2]
[373218150,1752909059962,-2076.63,0.00020712,2]
[373218151,1752909059972,-480.0,0.00020712,2]
[373218152,1752909059982,-480.0,0.00020712,2]
[373218153,1752909059992,-480.0,0.00020712,2]
[373218154,1752909060001,-330.38337552,0.00020714,2]
[373218155,1752909060011,-190.0,0.00020715,2]
[373218156,1752909060021,-2505.62,0.00020761,2]
[373218157,1752909060031,-1000.0,0.00020771,2]
[373218158,1752909060040,-210.6,0.000208,2]
[373218159,1752909060051,-2415.09,0.000208,2]
[373218160,1752909060061,-20000.0,0.0002082,2]
[373218161,1752909060072,-480.0,0.0002082,2]
[373218162,1752909060082,-480.0,0.0002082,2]
[373218163,1752909060092,-1354.91,0.0002082,2]
[373218164,1752909060102,-801.31,0.0002082,2]
[373218165,1752909060111,-480.0,0.0002082,2]
[373218166,1752909060122,-897.36,0.0002082,2]
[373218167,1752909060132,-480.0,0.0002082,2]
[373218168,1752909060141,-539.16,0.0002082,2]
[373218169,1752909060151,-480.0,0.0002082,2]
[373218170,1752909060160,-480.0,0.0002082,2]
[373218171,1752909060170,-480.0,0.0002082,2]
[373218172,1752909060180,-573.09,0.0002082,2]
[373218173,1752909060189,-843.96,0.0002082,2]
[373218174,1752909060199,-480.0,0.0002082,2]
[373218175,1752909060208,-480.0,0.0002082,2]
[373218176,1752909060218,-480.0,0.0002082,2]
[373218177,1752909060228,-1009.52,0.0002082,2]
[373218178,1752909060238,-480.0,0.0002082,2]
[373218179,1752909060247,-1341.18,0.0002082,2]
[373218180,1752909060257,-480.0,0.0002082,2]
[373218181,1752909060267,-681.25,0.0002082,2]
[373218182,1752909060278,-480.0,0.0002082,2]
[373218183,1752909060288,-540.38,0.0002082,2]
[373218184,1752909060297,-480.0,0.0002082,2]
[373218185,1752909060307,-480.0,0.0002082,2]
[373218186,1752909060317,-184.82000103,0.0002082,2]
[373218187,1752909060327,-536.6,0.0002082,2]
[373218188,1752909060337,-1223.95,0.0002082,2]
[373218189,1752909060347,-180.08655755,0.0002082,2]
[373218190,1752909060356,-480.0,0.0002082,2]
[373218191,1752909060366,-480.0,0.0002082,2]
[373218192,1752909060375,-499.34,0.0002082,2]
[373218193,1752909060384,-566.64,0.0002082,2]
[373218194,1752909060394,-615.64,0.0002082,2]
[373218195,1752909060404,-480.0,0.0002082,2]
[373218196,1752909060414,-480.0,0.0002082,2]
[373218197,1752909060423,-1220.62,0.0002082,2]
[373218198,1752909060433,-480.0,0.0002082,2]
[373218199,1752909060443,-480.0,0.0002082,2]
[373218200,1752909060453,-480.0,0.0002082,2]
[373218201,1752909060463,-726.16,0.0002082,2]
[373218202,1752909060473,-480.0,0.0002082,2]
[373218203,1752909060482,-480.0,0.00020821,2]
[373218204,1752909060493,-151.0,0.00020821,2]
[373218205,1752909060502,-563.18,0.00020821,2]
[373218206,1752909060512,-518.14,0.00020821,2]
[373218207,1752909060522,-480.0,0.00020821,2]
[373218208,1752909060531,-792.72,0.00020821,2]
[373218209,1752909060541,-480.0,0.00020821,2]
[373218210,1752909060551,-600.12,0.00020821,2]
[373218211,1752909060560,-764.91,0.00020821,2]
[373218212,1752909060570,-1230.98,0.00020821,2]
[373218213,1752909060579,-581.07,0.00020821,2]
[373218214,1752909060589,-628.11,0.00020821,2]
[373218215,1752909060599,-718.18,0.00020821,2]
[373218216,1752909060609,-606.55,0.00020821,2]
[373218217,1752909060618,-480.0,0.00020821,2]
[373218218,1752909060628,-480.0,0.00020821,2]
[373218219,1752909060638,-4441.88,0.00020821,2]
[373218220,1752909060647,-921.82,0.00020821,2]
[373218221,1752909060657,-1011.37,0.00020821,2]
[373218222,1752909060667,-1953.2,0.00020821,2]
[373218223,1752909060677,-480.0,0.00020821,2]
[373218224,1752909060687,-480.0,0.00020821,2]
[373218225,1752909060697,-631.07,0.00020821,2]
[373218226,1752909060708,-480.0,0.00020821,2]
[373218227,1752909060718,-534.74,0.00020821,2]
[373218228,1752909060729,-480.0,0.00020821,2]
[373218229,1752909060738,-7391.1,0.00020821,2]
[373218230,1752909060749,-637.96,0.00020821,2]
[373218231,1752909060758,-480.0,0.00020821,2]
[373218232,1752909060768,-875.35,0.00020821,2]
[373218233,1752909060778,-725.13,0.00020821,2]
[373218234,1752909060788,-937.01,0.00020821,2]
[373218235,1752909060800,-480.0,0.00020821,2]
[373218236,1752909060810,-568.26,0.00020821,2]
[373218237,1752909060819,-2076.63,0.00020821,2]
[373218238,1752909060829,-835.27,0.00020821,2]
[373218239,1752909060839,-571.22,0.00020821,2]
[373218240,1752909060849,-480.0,0.00020821,2]
[373218241,1752909060859,-480.0,0.00020821,2]
[373218242,1752909060868,-449.74133978,0.00020821,2]
[373218243,1752909060879,-8079.9,0.00020822,2]
[373218244,1752909060888,-232.0,0.0002083,2]
[373218245,1752909060898,-1375.10655,0.0002083,2]
[373218246,1752909060908,-1805.64267144,0.00020831,2]
[373218247,1752909060919,-5281.48019521,0.00020831,2]
[373218248,1752909060928,-330.38337552,0.00020846,2]